[Event "9. Korbacher Open 2017"]
[Site "Korbach"]
[Date "2017.10.19"]
[Round "1"]
[White "Thomas, Ingo"]
[Black "Launert, Martin"]
[Result "1/2-1/2"]
[ECO "C54"]
[WhiteElo "2129"]
[BlackElo "1879"]
[Annotator "ChessBase"]
[PlyCount "51"]
[EventDate "2017.??.??"]
[EventType "swiss"]
[EventCountry "GER"]
[SourceTitle "playchess.com"]
[Source "ChessBase"]
[SourceQuality "1"]
[TimeControl "40/5400+30:1800+30"]

1. e4 {[%emt 0:00:00]} e5 {[%emt 0:00:11]} 2. Nf3 {[%emt 0:00:00]} Nc6 {[%emt 0:00:04]} 3. Bc4 {[%emt 0:00:07]} Bc5 {[%emt 0:00:46]} 4. c3 {[%emt 0:00:55]} Nf6 {[%emt 0:00:12]} 5. d3 {[%emt 0:00:16]} d6 {[%emt 0:01:15]} 6. h3 {[%emt 0:02:47]} a6 {[%emt 0:05:53]} 7. Bb3 {[%emt 0:00:46]} h6 {[%emt 0:00:36]} 8. Bc2 {[%emt 0:08:26]} b5 {[%emt 0:03:29]} 9. b4 {[%emt 0:07:21]} Bb6 {[%emt 0:01:00]} 10. a4 {[%emt 0:00:14]} Bd7 {[%emt 0:03:57]} 11. O-O {[%emt 0:14:28]} O-O {[%emt 0:00:44]} 12. Na3 {[%emt 0:06:32]} Ne7 {[%emt 0:01:04]} 13. d4 {[%emt 0:02:01]} Ng6 {[%emt 0:01:27]} 14. c4 {[%emt 0:05:47]} exd4 {[%emt 0:13:42]} 15. cxb5 {[%emt 0:06:39]} c5 {[%emt 0:32:43]} 16. bxc6 {[%emt 0:06:41]} Bxc6 {[%emt 0:00:46]} 17. Nxd4 {[%emt 0:01:11]} Bxe4 {[%emt 0:00:49]} 18. Be3 {[%emt 0:02:00]} Bxc2 {[%emt 0:02:45]} 19. Qxc2 {[%emt 0:00:35]} Nd5 {[%emt 0:01:08]} 20. Qb3 {[%emt 0:03:49]} Nxe3 {[%emt 0:02:49]} 21. Qxe3 {[%emt 0:05:20]} Qf6 {[%emt 0:03:29]} 22. Rad1 {[%emt 0:00:12]} Rfe8 {[%emt 0:00:54]} 23. Qd2 {[%emt 0:01:22]} Nf4 {[%emt 0:05:35]} 24. Kh2 {[%emt 0:00:30]} d5 {[%emt 0:04:38]} 25. Nac2 {[%emt 0:02:00]} Re4 {[%emt 0:04:21]} 26. b5 {[%emt 0:10:06]} 1/2-1/2

[Event "9. Korbacher Open 2017"]
[Site "Korbach"]
[Date "2017.10.19"]
[Round "1"]
[White "Neukirchner, Pascal"]
[Black "Trienekens, Tjark"]
[Result "1-0"]
[ECO "A59"]
[WhiteElo "2123"]
[BlackElo "1865"]
[Annotator "ChessBase"]
[PlyCount "87"]
[EventDate "2017.??.??"]
[EventType "swiss"]
[EventCountry "GER"]
[SourceTitle "playchess.com"]
[Source "ChessBase"]
[SourceQuality "1"]
[TimeControl "40/5400+30:1800+30"]

1. d4 {[%emt 0:00:00]} Nf6 {[%emt 0:00:10]} 2. c4 {[%emt 0:00:00]} c5 {[%emt 0:00:08]} 3. d5 {[%emt 0:00:00]} b5 {[%emt 0:00:06]} 4. cxb5 {[%emt 0:00:19]} a6 {[%emt 0:00:13]} 5. bxa6 {[%emt 0:00:05]} Bxa6 {[%emt 0:00:06]} 6. Nc3 {[%emt 0:00:05]} d6 {[%emt 0:01:11]} 7. e4 {[%emt 0:00:38]} Bxf1 {[%emt 0:00:14]} 8. Kxf1 {[%emt 0:00:04]} g6 {[%emt 0:01:38]} 9. Nf3 {[%emt 0:00:06]} Bg7 {[%emt 0:00:28]} 10. g3 {[%emt 0:00:06]} O-O {[%emt 0:00:37]} 11. Kg2 {[%emt 0:00:05]} e6 {[%emt 0:03:36]} 12. dxe6 {[%emt 0:04:20]} fxe6 {[%emt 0:02:02]} 13. e5 {[%emt 0:00:02]} dxe5 {[%emt 0:06:18]} 14. Qxd8 {[%emt 0:08:04]} Rxd8 {[%emt 0:01:31]} 15. Nxe5 {[%emt 0:03:00]} Nd5 {[%emt 0:03:32]} 16. Bg5 {[%emt 0:00:37]} Rf8 {[%emt 0:26:24]} 17. Rhe1 {[%emt 0:03:19]} Nxc3 {[%emt 0:03:31]} 18. bxc3 {[%emt 0:00:12]} Rf5 {[%emt 0:00:09]} 19. f4 {[%emt 0:01:05]} Ra3 {[%emt 0:09:04]} 20. Re2 {[%emt 0:15:22]} Bxe5 {[%emt 0:13:09]} 21. Rxe5 {[%emt 0:00:02]} Rxe5 {[%emt 0:00:11]} 22. fxe5 {[%emt 0:00:07]} Nc6 {[%emt 0:00:36]} 23. Bf6 {[%emt 0:06:29]} Na5 {[%emt 0:01:44]} 24. Rd1 {[%emt 0:01:01]} Rxa2+ {[%emt 0:03:07]} 25. Kh3 {[%emt 0:00:01]} Ra3 {[%emt 0:05:43]} 26. Rd8+ {[%emt 0:00:57]} Kf7 {[%emt 0:00:19]} 27. Rh8 {[%emt 0:00:06]} h5 {[%emt 0:03:24]} 28. Rh7+ {[%emt 0:04:02]} Kg8 {[%emt 0:03:09]} 29. Rg7+ {[%emt 0:00:10]} Kf8 {[%emt 0:00:11]} 30. Ra7 {[%emt 0:01:40]} Ke8 {[%emt 0:01:22]} 31. Kh4 {[%emt 0:00:30]} Nc4 {[%emt 0:03:15]} 32. Re7+ {[%emt 0:00:03]} Kf8 {[%emt 0:00:17]} 33. Kg5 {[%emt 0:00:10]} Nxe5 {[%emt 0:03:39]} 34. Rxe6 {[%emt 0:00:03]} Nd7 {[%emt 0:04:55]} 35. Kxg6 {[%emt 0:00:02]} Nxf6 {[%emt 0:00:40]} 36. Rxf6+ {[%emt 0:00:01]} Ke7 {[%emt 0:00:19]} 37. Rf3 {[%emt 0:00:02]} h4 {[%emt 0:00:34]} 38. g4 {[%emt 0:01:50]} Ra2 {[%emt 0:00:52]} 39. Rh3 {[%emt 0:00:03]} Ra3 {[%emt 0:01:03]} 40. Kf5 {[%emt 0:00:21]} Kd6 {[%emt 0:30:24]} 41. g5 {[%emt 0:30:12]} Ra4 {[%emt 0:00:32]} 42. g6 {[%emt 0:00:08]} Kd5 {[%emt 0:00:32]} 43. g7 {[%emt 0:00:22]} Ra1 {[%emt 0:00:33]} 44. g8=Q+ {[%emt 0:00:12]} 1-0

[Event "9. Korbacher Open 2017"]
[Site "Korbach"]
[Date "2017.10.19"]
[Round "1"]
[White "Sanati, Charlotte"]
[Black "Plaza Reino, Mercedes"]
[Result "1-0"]
[ECO "D35"]
[WhiteElo "2098"]
[BlackElo "1822"]
[Annotator "NA RC"]
[PlyCount "93"]
[EventDate "2017.??.??"]
[EventType "swiss"]
[EventCountry "GER"]
[SourceTitle "playchess.com"]
[Source "ChessBase"]
[SourceQuality "1"]
[TimeControl "40/5400+30:1800+30"]

{[%evp 12,93,16,23,32767,32767,20,20,32767,32767,30,11,23,14,43,31,27,22,41,28,40,6,32767,48,32767,46,70,32767,69,32767,57,64,46,-2,29,32767,243,243,262,268,598,32767,590,32767,32767,736,625,150,142,130,226,240,218,247,245,286,363,357,371,347,305,364,796,841,1216,405,1181,32767,2170,993,1036,1300,1291,1553,1653,1068,989,1160,1404,1661,29981,29985,29986,29986]} 1. d4 {[%emt 0:00:00]} d5 {[%emt 0:00:07]} 2. c4 {[%emt 0:00:00]} e6 {[%emt 0:00:01]} 3. cxd5 {[%emt 0:00:00]} exd5 {[%emt 0:00:03]} 4. Nc3 {[%emt 0:00:00]} Nf6 {[%emt 0:00:05]} 5. Bg5 {[%emt 0:00:19]} Be7 {[%emt 0:00:52]} 6. e3 {[%emt 0:00:31]} c6 {[%emt 0:01:16]} 7. Bd3 {[%emt 0:01:11]} h6 {[%emt 0:03:31]} 8. Bh4 {[%emt 0:03:32]} Nbd7 {[%emt 0:00:27]} 9. Nge2 {[%emt 0:01:02]} O-O {[%emt 0:02:04]} 10. O-O {[%emt 0:00:16]} Re8 {[%emt 0:08:21] D35: Queen's Gambit Declined: Exchange Variation} 11. f3 {[%emt 0:08:04] LiveBook: 9 Games} Nf8 {[%emt 0:38:46]} (11... c5 12. Kh1 a6 13. Rc1 cxd4 14. exd4 b5 15. Bg3 Bb7 16. a4 b4 17. Nb1 Rc8 18. Rxc8 Qxc8 {1-0 (42) Ivanisevic,I (2662)-Bokros,A (2472) Kragujevac 2015}) 12. Bf2 {[%emt 0:08:15]} b6 {[%emt 0:11:37]} 13. Qd2 {[%emt 0:10:23]} Ne6 {[%emt 0:06:11]} 14. Rad1 $146 {[%emt 0:03:10]} ({Predecessor:} 14. h3 c5 15. Rad1 Bb7 16. Bb5 Rf8 17. Ba4 a6 18. Bb3 {1-0 (53) Guerrero,A (2197)-Genta,A (2118) Colonia del Sacramento 2009}) 14... Bb7 {[%emt 0:01:36]} 15. Bf5 {[%emt 0:06:02]} Bf8 {[%emt 0:07:11]} 16. e4 {[%emt 0:03:44]} g6 {[%emt 0:04:11]} 17. Bxe6 $1 {[%emt 0:07:17]} Rxe6 {[%emt 0:00:45]} 18. e5 {[%emt 0:03:51]} Nd7 {[%emt 0:00:49]} 19. Be3 {[%emt 0:03:27]} Kh7 {[%emt 0:00:14]} 20. f4 {[%emt 0:00:34]} f5 {[%emt 0:02:58]} 21. g4 {[%emt 0:05:40]} Qh4 {[%emt 0:06:24]} 22. g5 {[%emt 0:10:19]} (22. gxf5 $14 gxf5 23. Kh1) 22... hxg5 {[%emt 0:00:46]} 23. fxg5 {[%emt 0:01:42]} Kg7 $2 {[%emt 0:01:12]} (23... Qg4+ $11 24. Kh1 {[#]} Nxe5 $1 {[%mdl 512]}) 24. Nf4 {[%emt 0:02:02]} Ree8 {[%emt 0:02:06]} 25. Rf3 {[%emt 0:01:19]} Qh7 $2 {[%emt 0:00:48]} (25... Be7 {is more resistant.} 26. e6 Nf8) 26. Rh3 {[%emt 0:01:44]} Qg8 {[%emt 0:00:16]} 27. Rh6 {[%emt 0:00:27]} Re6 {[%emt 0:00:34]} 28. Nxe6+ {[%emt 0:01:36]} Qxe6 {[%emt 0:00:01]} 29. Qf2 $2 {[%emt 0:00:24]} (29. Ne2 $18) 29... Kg8 {[%emt 0:01:08]} 30. Rh3 {[%emt 0:02:10]} Bg7 {[%emt 0:00:18] [#]} (30... Ba6 $16 31. Rd2 (31. Qh4 Bg7 $16) 31... Bg7) 31. Ne2 $1 {[%emt 0:00:55]} Nf8 {[%emt 0:00:26]} 32. Nf4 {[%emt 0:01:09]} Qe7 {[%emt 0:00:43]} 33. Rg3 {[%emt 0:02:43]} Bc8 {[%emt 0:00:21]} 34. h4 {[%emt 0:00:28]} Be6 {[%emt 0:00:41]} 35. Qh2 {[%emt 0:02:48]} Bf7 {[%emt 0:00:32]} 36. h5 {[%emt 0:01:22]} Ne6 $2 {[%emt 0:00:34]} (36... Rc8 37. h6 Bh8) 37. hxg6 {[%emt 0:01:24]} Be8 {[%emt 0:00:31]} 38. Qh7+ {[%emt 0:01:11]} Kf8 {[%emt 0:00:01]} 39. Nh5 {[%emt 0:01:04]} Qc7 {[%emt 0:01:00]} 40. Nf6 {[%emt 0:00:39]} (40. Rf1 $142 Qd7 41. Rxf5+ Ke7 42. Nxg7 Nxg7 43. Qxg7+ Kd8 44. Qf8 Qxf5 45. Qxf5) 40... Ke7 {[%emt 0:30:27]} 41. Rc1 {[%emt 0:34:24]} Qb7 {[%emt 0:00:00]} 42. Rf1 {[%emt 0:00:00]} Kd8 {[%emt 0:00:00]} 43. Qg8 {[%emt 0:00:00]} Qe7 {[%emt 0:00:00]} 44. Rxf5 {[%emt 0:00:00]} Kc7 {[%emt 0:00:00]} 45. Nxe8+ {[%emt 0:00:00]} Qxe8 {[%emt 0:00:00]} 46. Rf7+ {[%emt 0:00:00]} Kd8 {[%emt 0:00:00]} 47. Rxg7 {[%emt 0:00:00]} 1-0

[Event "9. Korbacher Open 2017"]
[Site "Korbach"]
[Date "2017.10.19"]
[Round "1"]
[White "Nielsen, Klaus"]
[Black "Basovskiy, Jana"]
[Result "1-0"]
[ECO "D05"]
[WhiteElo "2092"]
[BlackElo "1825"]
[Annotator "NA RC"]
[PlyCount "113"]
[EventDate "2017.??.??"]
[EventType "swiss"]
[EventCountry "GER"]
[SourceTitle "playchess.com"]
[Source "ChessBase"]
[SourceQuality "1"]
[TimeControl "40/5400+30:1800+30"]

{[%evp 8,113,10,12,32767,-20,-6,32767,32767,-8,0,-9,-10,-17,-6,-35,-4,-21,17,-33,-16,-37,-33,-32,-33,-39,-14,-39,-33,107,-47,-83,-72,-66,32767,32767,-35,-93,32767,32767,-97,-102,-94,-92,-75,32767,-45,-91,-52,-49,-56,-102,-87,-108,-79,-91,0,-19,0,0,0,32767,0,-241,-243,-229,-123,-259,-257,-267,-64,-227,162,156,177,190,298,375,410,422,345,123,105,0,-4,-50,27,0,133,177,348,475,460,493,3147,2235,3172,32767,32767,32767,32767,32767,32767,32767,29989,29990,29990,29989]} 1. d4 {[%emt 0:00:00]} d5 {[%emt 0:00:03]} 2. Nf3 {[%emt 0:00:19]} Nf6 {[%emt 0:00:36]} 3. e3 {[%emt 0:01:56]} e6 {[%emt 0:00:25]} 4. Bd3 {[%emt 0:00:07]} Be7 {[%emt 0:00:19]} 5. Nbd2 {[%emt 0:00:24]} O-O {[%emt 0:01:26]} 6. Ne5 {[%emt 0:02:49]} b6 {[%emt 0:03:38]} 7. O-O {[%emt 0:03:26]} Bb7 {[%emt 0:00:35]} 8. f4 {[%emt 0:11:58]} Nbd7 {[%emt 0:03:05] D05: Colle System with ...e6} (8... Ne4 9. Nxe4 dxe4 10. Bc4 Nd7 11. Qh5 Nf6 12. Qh3 c5 13. g4 cxd4 14. g5 Nd5 15. exd4 Qc8 16. Bb3 {½-½ (59) Starostits,I (2413)-Ladva,O (2510) Parnu 2016}) 9. Qf3 {[%emt 0:00:50]} c5 {[%emt 0:01:50]} 10. c3 {[%emt 0:00:47] LiveBook: 6 Games} Rc8 {[%emt 0:04:54]} 11. g4 {[%emt 0:04:47]} Ne8 {[%emt 0:07:56]} 12. Qh3 {[%emt 0:04:02]} g6 $146 {[%emt 0:06:06]} ({Predecessor:} 12... Ndf6 13. Qg2 Nd6 {0-1 (32) Perk,E-Poehl,H Wingst 1999}) 13. Ndf3 {[%emt 0:02:57]} Nd6 {[%emt 0:08:30]} 14. Nxd7 {[%emt 0:12:35]} Qxd7 {[%emt 0:00:35]} 15. Ne5 {[%emt 0:00:33]} Qd8 {[%emt 0:00:29]} 16. Rf3 {[%emt 0:08:40]} Kg7 {[%emt 0:08:52]} 17. g5 {[%emt 0:09:58]} Rh8 {[%emt 0:00:53]} 18. Qh6+ {[%emt 0:07:54]} (18. Qg2 $15) 18... Kg8 {[%emt 0:00:23]} 19. Bd2 {[%emt 0:01:19]} Nf5 {[%emt 0:02:30]} 20. Bxf5 {[%emt 0:02:59]} exf5 {[%emt 0:00:29]} 21. Rg3 {[%emt 0:06:28]} Qf8 {[%emt 0:06:05]} 22. Qh3 {[%emt 0:00:19]} (22. Qxf8+ $11 Rxf8 23. a4) 22... h6 {[%emt 0:02:00]} 23. gxh6 {[%emt 0:02:56]} Qxh6 {[%emt 0:04:34]} 24. Qg2 {[%emt 0:00:23]} Kg7 {[%emt 0:03:06]} 25. Nf3 {[%emt 0:03:55]} Rh7 {[%emt 0:14:05]} 26. Qe2 {[%emt 0:03:33]} Rch8 {[%emt 0:05:19]} 27. Be1 {[%emt 0:01:59]} Re8 {[%emt 0:03:04]} 28. Qb5 {[%emt 0:00:31]} Rhh8 $1 {[%emt 0:03:50]} 29. Qd3 {[%emt 0:01:52]} Bf6 {[%emt 0:02:56]} 30. Rg2 {[%emt 0:00:16]} Qh5 {[%emt 0:01:53]} 31. Ne5 {[%emt 0:00:41]} Bxe5 {[%emt 0:02:52]} (31... c4 $17 32. Qc2 a6) 32. fxe5 {[%emt 0:00:02]} Qf3 {[%emt 0:00:33]} 33. Bg3 {[%emt 0:00:28]} cxd4 {[%emt 0:01:02]} 34. Qxd4 {[%emt 0:01:24]} Qe4 {[%emt 0:00:49]} 35. Qd2 $2 {[%emt 0:02:46] [#]} (35. Bf4 $11) 35... d4 $1 {[%emt 0:01:24]} 36. exd4 {[%emt 0:01:19]} Qxg2+ {[%emt 0:00:02]} 37. Qxg2 {[%emt 0:00:03]} Bxg2 {[%emt 0:00:30]} 38. Kxg2 {[%emt 0:00:30]} Rd8 $2 {[%emt 0:00:50]} (38... g5 $19 39. Re1 f4) 39. Rd1 $2 {[%emt 0:00:27]} ({White should play} 39. h4 $15) 39... Rhe8 $4 {[%emt 0:00:07]} (39... g5 $19 {and life is good for Black.} 40. h4 f4) 40. Bh4 {[%emt 0:00:39]} Rc8 {[%emt 0:30:42]} 41. Bf6+ {[%emt 0:30:10]} Kh6 {[%emt 0:00:00]} (41... Kf8 {might work better.} 42. d5 Re7) 42. d5 {[%emt 0:00:00]} Rc7 {[%emt 0:00:00]} 43. d6 {[%emt 0:00:00]} Rd7 {[%emt 0:00:00]} 44. Rd4 $2 {[%emt 0:00:00]} (44. Kf3 $18 {has better winning chances.}) 44... g5 {[%emt 0:00:00]} 45. Rc4 $2 {[%emt 0:00:00]} ({Better is} 45. c4 $18) 45... Kg6 {[%emt 0:00:00]} 46. a4 {[%emt 0:00:00]} Rb8 {[%emt 0:00:00]} (46... Re6 $15 47. Rd4 Rxf6 48. exf6 Kxf6) 47. b4 {[%emt 0:00:00] [#]} f4 {[%emt 0:00:00] [#]} (47... Rxd6 $1 $11 {[%mdl 512] keeps the balance.} 48. exd6 Kxf6) 48. h4 $1 {[%emt 0:00:00]} gxh4 $2 {[%emt 0:00:00]} (48... a6 {was necessary.}) 49. Rxf4 {[%emt 0:00:00]} Rc8 {[%emt 0:00:00]} 50. c4 {[%emt 0:00:00]} Rg8 {[%emt 0:00:00]} (50... Rb7 $142 51. Bxh4 Kh5) 51. Rg4+ {[%emt 0:00:00]} Kh7 {[%emt 0:00:00]} 52. Rxg8 {[%emt 0:00:00]} Kxg8 {[%emt 0:00:00]} 53. c5 {[%emt 0:00:00]} bxc5 {[%emt 0:00:00]} 54. bxc5 {[%emt 0:00:00]} Rb7 {[%emt 0:00:00]} 55. c6 {[%emt 0:00:00]} Rb2+ {[%emt 0:00:00]} 56. Kh3 {[%emt 0:00:00]} Rb3+ {[%emt 0:00:00]} 57. Kxh4 {[%emt 0:00:00]} 1-0

[Event "9. Korbacher Open 2017"]
[Site "Korbach"]
[Date "2017.10.19"]
[Round "1"]
[White "Koellner, Christof"]
[Black "Powalla, Christian"]
[Result "1-0"]
[ECO "A45"]
[WhiteElo "2073"]
[BlackElo "1816"]
[Annotator "NA"]
[PlyCount "47"]
[EventDate "2017.??.??"]
[EventType "swiss"]
[EventCountry "GER"]
[SourceTitle "playchess.com"]
[Source "ChessBase"]
[SourceQuality "1"]
[TimeControl "40/5400+30:1800+30"]

{[%evp 8,47,29,24,76,32767,32767,46,93,90,100,78,88,95,89,108,121,32767,102,89,95,130,122,101,110,111,122,106,193,32767,281,284,285,295,271,314,418,567,32767,489,1666,2044]} 1. d4 {[%emt 0:00:00]} Nf6 {[%emt 0:00:05]} 2. Bg5 {[%emt 0:00:18]} d5 {[%emt 0:01:18]} 3. e3 {[%emt 0:00:04]} Ne4 {[%emt 0:05:32]} 4. Bf4 {[%emt 0:00:16]} Nd7 {[%emt 0:03:06] A45: Trompowsky Attack} (4... Bf5 5. f3 Nd6 6. Nc3 e6 7. Qe2 Nc6 8. O-O-O Be7 9. e4 Bg6 10. exd5 exd5 11. Nxd5 O-O 12. Nxe7+ Nxe7 13. d5 {½-½ (40) Martinovic,S (2565)-Georgiev,K (2631) Mali Losinj 2017}) 5. Bd3 {[%emt 0:00:51]} Ndf6 {[%emt 0:03:27]} 6. f3 {[%emt 0:01:10]} Nd6 {[%emt 0:00:14]} 7. Nd2 {[%emt 0:07:19]} Nf5 $146 {[%emt 0:17:36]} ({Predecessor:} 7... g6 8. e4 dxe4 9. fxe4 Bg4 10. Ngf3 Bg7 11. h3 Bd7 12. Bh2 Nc8 13. c4 O-O 14. O-O c6 15. Qe1 Be8 16. Qe3 Nd7 17. e5 {1-0 (17) Stamenkovic,D (2382)-Stankovic,D (2287) Valjevo 2010}) 8. g4 {[%emt 0:04:48]} Nd6 {[%emt 0:01:02]} 9. h4 {[%emt 0:01:42]} h5 {[%emt 0:02:54]} 10. g5 {[%emt 0:03:12]} Nd7 {[%emt 0:02:42]} 11. g6 {[%emt 0:04:09]} f6 {[%emt 0:02:07]} 12. c4 {[%emt 0:05:12]} dxc4 {[%emt 0:06:14]} 13. Nxc4 {[%emt 0:04:22]} Nb6 {[%emt 0:05:21]} 14. Nxb6 {[%emt 0:07:22]} axb6 {[%emt 0:08:23]} 15. Qb3 {[%emt 0:04:16]} e6 {[%emt 0:00:54]} 16. Ne2 {[%emt 0:01:45]} Bd7 {[%emt 0:05:31]} 17. e4 {[%emt 0:10:51]} Qe7 {[%emt 0:06:20]} (17... Be7 $16) 18. Rc1 {[%emt 0:02:24]} Rc8 $2 {[%emt 0:03:52]} (18... Bc6 $16) 19. e5 {[%emt 0:12:56]} Nf5 {[%emt 0:02:42]} 20. Kf2 {[%emt 0:07:18]} fxe5 {[%emt 0:04:59]} 21. Bxe5 {[%emt 0:02:21]} ({Less strong is} 21. dxe5 Qb4 $16) 21... Nxh4 {[%emt 0:07:33]} 22. Nf4 {[%emt 0:01:23]} Bc6 {[%emt 0:03:14]} 23. Be4 {[%emt 0:03:23]} Nf5 $18 {[%emt 0:02:18]} (23... Bxe4 $142 24. fxe4 Rh6 25. Nxe6 c5 26. Nxf8 (26. Qxb6 Rxg6 27. Qb5+ Rc6 $11) 26... Qxf8+ 27. Qf7+ Qxf7+ 28. gxf7+ Kxf7 29. Rxh4 g5) 24. Rxc6 {[%emt 0:01:06]} 1-0

[Event "9. Korbacher Open 2017"]
[Site "Korbach"]
[Date "2017.10.19"]
[Round "1"]
[White "Braun, Ingram"]
[Black "Achermann, Didier"]
[Result "1-0"]
[ECO "B23"]
[WhiteElo "2042"]
[BlackElo "1811"]
[Annotator "NA RC"]
[PlyCount "55"]
[EventDate "2017.??.??"]
[EventType "swiss"]
[EventCountry "GER"]
[SourceTitle "playchess.com"]
[Source "ChessBase"]
[SourceQuality "1"]
[TimeControl "40/5400+30:1800+30"]

{[%evp 9,55,22,30,32767,31,32767,32767,32767,33,15,10,16,84,-1,81,26,32767,42,401,414,576,608,555,613,1002,612,685,610,637,690,2042,697,5485,1014,2239,901,866,762,871,930,929,948,933,1047,1155,1566,1456,1807]} 1. e4 {[%emt 0:00:00]} c5 {[%emt 0:00:08]} 2. Nc3 {[%emt 0:00:00]} d6 {[%emt 0:00:17]} 3. g3 {[%emt 0:00:00]} Nf6 {[%emt 0:00:34]} 4. Bg2 {[%emt 0:00:00]} e6 {[%emt 0:00:58]} 5. Nge2 {[%emt 0:01:06]} Be7 {[%emt 0:01:05]} 6. O-O {[%emt 0:00:32]} O-O {[%emt 0:00:15]} 7. d4 {[%emt 0:00:50]} cxd4 {[%emt 0:00:07]} 8. Nxd4 {[%emt 0:00:05]} a6 {[%emt 0:00:42]} 9. Be3 {[%emt 0:03:44]} Nbd7 {[%emt 0:00:46]} 10. f4 {[%emt 0:02:49] B80: Sicilian Scheveningen: 6 g3 and 6 Be3, including English Attack} Qc7 {[%emt 0:00:55] LiveBook: 3 Games} (10... Nb6 $11 11. Kh1 g6 12. b3 e5 13. Nde2 exf4 14. Nxf4 Bd7 15. a4 Bc6 16. a5 Nbd7 17. Ncd5 Re8 {1-0 (39) Popovic,P (2545)-Ilincic,Z (2565) Niksic 1997}) 11. h3 {[%emt 0:01:42]} ({Besser ist} 11. g4 $14) 11... Rb8 {[%emt 0:05:37]} (11... Nb6 $11 {remains equal.}) 12. a4 {[%emt 0:06:04]} b6 $146 {[%emt 0:08:40]} ({Predecessor:} 12... Re8 13. g4 Nb6 14. g5 Nfd7 15. Kh1 {½-½ (43) Belkhodja,S (2385)-Santana Otero,O (2230) Mendoza 1985}) 13. e5 {[%emt 0:02:41]} (13. g4 $16) 13... Nd5 $2 {[%emt 0:04:44]} (13... dxe5 $14 14. Nc6 Bd6) 14. Bxd5 {[%emt 0:07:45]} Nxe5 {[%emt 0:06:46]} 15. fxe5 {[%emt 0:01:08]} exd5 {[%emt 0:00:28]} 16. Nxd5 {[%emt 0:01:34]} Qd7 {[%emt 0:01:11]} 17. e6 {[%emt 0:07:10]} fxe6 {[%emt 0:01:19]} 18. Nxe7+ {[%emt 0:00:38]} Qxe7 {[%emt 0:00:15]} 19. Nc6 {[%emt 0:00:16]} Qc7 {[%emt 0:00:19]} 20. Rxf8+ {[%emt 0:00:36]} Kxf8 {[%emt 0:00:06]} 21. Nxb8 {[%emt 0:04:35]} Bb7 {[%emt 0:00:08]} 22. Qd3 {[%emt 0:01:11]} Kg8 {[%emt 0:01:22]} 23. Rd1 {[%emt 0:04:30]} d5 {[%emt 0:02:06]} 24. Bf4 {[%emt 0:01:38]} e5 {[%emt 0:00:17]} 25. Nxa6 {[%emt 0:03:38]} Qd6 {[%emt 0:05:08]} 26. Qe2 {[%emt 0:04:37]} d4 {[%emt 0:10:39]} 27. Qxe5 {[%emt 0:00:43]} Qc6 {[%emt 0:01:23]} 28. Qb8+ $18 {[%emt 0:01:41]} 1-0

[Event "9. Korbacher Open 2017"]
[Site "Korbach"]
[Date "2017.10.19"]
[Round "1"]
[White "Schmidt, Matthias"]
[Black "Meyer, Marcel"]
[Result "0-1"]
[ECO "B18"]
[WhiteElo "2031"]
[BlackElo "1740"]
[Annotator "NA"]
[PlyCount "54"]
[EventDate "2017.??.??"]
[EventType "swiss"]
[EventCountry "GER"]
[SourceTitle "playchess.com"]
[Source "ChessBase"]
[SourceQuality "1"]
[TimeControl "40/5400+30:1800+30"]

{[%evp 14,54,0,32767,-14,-22,-22,-89,-100,-86,-89,-134,-102,-116,-125,-122,-96,-89,37,-80,-18,0,84,4,32767,-51,-35,-6,-27,-31,-15,-47,-56,-65,-74,-83,-43,32767,-125,-113,-127,-29992,-1112]} 1. e4 {[%emt 0:00:00]} c6 {[%emt 0:00:26]} 2. d4 {[%emt 0:00:00]} d5 {[%emt 0:00:14]} 3. Nc3 {[%emt 0:00:00]} dxe4 {[%emt 0:00:10]} 4. Nxe4 {[%emt 0:00:12]} Bf5 {[%emt 0:00:08]} 5. Ng3 {[%emt 0:00:54]} Bg6 {[%emt 0:00:09]} 6. h4 {[%emt 0:02:07]} h6 {[%emt 0:00:16]} 7. h5 {[%emt 0:05:29]} Bh7 {[%emt 0:00:08] LiveBook: 402 Games} 8. Bc4 {[%emt 0:05:09] B18: Caro-Kann (Hauptvariante)} (8. Nf3 e6 9. Bd3 Bxd3 10. Qxd3 Nf6 11. Bd2 Be7 12. O-O-O O-O 13. Ne4 Nxe4 14. Qxe4 Qd5 15. Qxd5 cxd5 16. g4 Nc6 17. c3 Rac8 18. Rdg1 f6 19. Bf4 e5 20. Be3 Bd6 {0-1 (44) Savchenko,B (2585)-Popov,I (2609) Sochi 2017}) 8... Nd7 {[%emt 0:02:34]} 9. N1e2 $146 {[%emt 0:12:17]} ({Vorgänger:} 9. Nf3 Qc7 10. Rh4 e6 11. Bf4 Bd6 12. Bxd6 Qxd6 13. Kf1 Ngf6 14. Qe2 O-O 15. Ne5 Nd5 16. Ne4 Qe7 17. g3 Nxe5 18. dxe5 {½-½ (45) Zell,R-Stegmann,V Wuerzburg 1989}) 9... Ngf6 {[%emt 0:02:01]} 10. Nf4 {[%emt 0:06:19]} e5 {[%emt 0:05:37]} 11. dxe5 {[%emt 0:10:51]} Nxe5 {[%emt 0:00:43]} 12. Qe2 {[%emt 0:10:59]} Bd6 {[%emt 0:04:40]} 13. Be3 {[%emt 0:10:02]} O-O {[%emt 0:05:44]} 14. O-O-O {[%emt 0:00:48]} Nxc4 {[%emt 0:04:38]} 15. Qxc4 {[%emt 0:00:15]} Qc7 {[%emt 0:01:00]} ({Besser ist} 15... Qe7 $17) 16. Ng6 {[%emt 0:15:40]} (16. Ne6 $1 $11 fxe6 17. Qxe6+ Rf7 18. Qxd6) 16... Rfe8 {[%emt 0:07:54]} 17. Nf5 {[%emt 0:02:33]} Re4 {[%emt 0:06:09]} (17... b5 $1 $11 {remains equal.} 18. Qc3 Be5 19. Nxe5 Bxf5) 18. Rd4 {[%emt 0:07:59]} ({Wrong is} 18. Rxd6 $2 Rxc4 19. Nfe7+ {[#]} Qxe7 $1 $19 {[%mdl 512]}) 18... b5 {[%emt 0:08:09]} 19. Qd3 {[%emt 0:01:44]} ({Better is} 19. Qc3 $11 Rxd4 20. Qxd4 fxg6 21. hxg6 (21. Qxd6 Qxd6 22. Nxd6 gxh5 $11) 21... Bxg6 22. Qxd6 Qxd6 23. Nxd6) 19... fxg6 {[%emt 0:09:55]} 20. Nxd6 {[%emt 0:00:30]} Rxd4 {[%emt 0:01:24]} 21. Qxd4 {[%emt 0:00:16]} Rd8 {[%emt 0:04:14]} 22. Rd1 {[%emt 0:00:54]} Nd5 {[%emt 0:09:31]} 23. hxg6 {[%emt 0:00:30]} Bxg6 {[%emt 0:01:05]} 24. Ne4 {[%emt 0:00:27]} Re8 {[%emt 0:03:54]} 25. Nc5 {[%emt 0:03:38]} Nxe3 {[%emt 0:02:12]} 26. fxe3 {[%emt 0:00:10]} Qg3 {[%emt 0:01:33]} 27. Re1 {[%emt 0:00:38]} (27. e4 $17) 27... Qxe1+ {Qc3} 0-1